[Event "Late-Titled-Tuesday-Blitz-May-14-2024"]
[Site "Chess.com"]
[Date "2024.05.14"]
[Round "8"]
[White "Hikaru"]
[Black "sergoy"]
[Result "1-0"]
[WhiteElo "3234"]
[BlackElo "3011"]
[TimeControl "180+1"]
[EndTime "15:28:28 PDT"]
[Termination "Hikaru won on time"]

1. b3 {[%clk 0:03:00.9]} 1... e5 {[%clk 0:02:59.8]} 2. Bb2 {[%clk 0:03:01.8]}
2... Nc6 {[%clk 0:02:59.9]} 3. e3 {[%clk 0:03:00.7]} 3... Nf6 {[%clk 0:03:00.2]}
4. Bb5 {[%clk 0:02:59.5]} 4... Bd6 {[%clk 0:02:57]} 5. Na3 {[%clk 0:02:59.2]}
5... e4 {[%clk 0:02:57.5]} 6. Nc4 {[%clk 0:02:56.8]} 6... Be7 {[%clk 0:02:57.7]}
7. Bxc6 {[%clk 0:02:57]} 7... dxc6 {[%clk 0:02:53.1]} 8. f3 {[%clk 0:02:57.4]}
8... O-O {[%clk 0:02:43.2]} 9. Ne2 {[%clk 0:02:52.4]} 9... a5 {[%clk 0:02:35.8]}
10. Ng3 {[%clk 0:02:50.4]} 10... exf3 {[%clk 0:02:07.6]} 11. Qxf3 {[%clk
0:02:51.3]} 11... Bg4 {[%clk 0:02:05.4]} 12. Qf4 {[%clk 0:02:41.4]} 12... Be6
{[%clk 0:02:05.7]} 13. Nf5 {[%clk 0:02:41.6]} 13... Bxf5 {[%clk 0:02:05.1]} 14.
Qxf5 {[%clk 0:02:42.5]} 14... Qd5 {[%clk 0:02:04.4]} 15. Qf3 {[%clk 0:02:39.6]}
15... a4 {[%clk 0:02:03.4]} 16. Ke2 {[%clk 0:02:32.5]} 16... Rfd8 {[%clk
0:02:02.2]} 17. d3 {[%clk 0:02:32.4]} 17... Qe6 {[%clk 0:01:58]} 18. Rhf1 {[%clk
0:02:26.4]} 18... Nd5 {[%clk 0:01:57.9]} 19. Qg3 {[%clk 0:02:22.9]} 19... Bf6
{[%clk 0:01:50.9]} 20. Bxf6 {[%clk 0:02:16.6]} 20... Nxf6 {[%clk 0:01:51.1]} 21.
e4 {[%clk 0:02:08.1]} 21... Qg4+ {[%clk 0:01:22.2]} 22. Qxg4 {[%clk 0:02:02.2]}
22... Nxg4 {[%clk 0:01:23.1]} 23. h3 {[%clk 0:02:02.2]} 23... Nf6 {[%clk
0:01:23.3]} 24. b4 {[%clk 0:02:02.5]} 24... a3 {[%clk 0:01:16.4]} 25. Rab1
{[%clk 0:01:57.9]} 25... Nd7 {[%clk 0:01:15.3]} 26. Rb3 {[%clk 0:01:54.8]} 26...
f6 {[%clk 0:01:07.6]} 27. Na5 {[%clk 0:01:51.5]} 27... Ra7 {[%clk 0:01:04.3]}
28. Nc4 {[%clk 0:01:44.5]} 28... Nf8 {[%clk 0:00:53.1]} 29. Ke3 {[%clk
0:01:41.8]} 29... Ne6 {[%clk 0:00:53]} 30. c3 {[%clk 0:01:42.4]} 30... b6 {[%clk
0:00:45.4]} 31. d4 {[%clk 0:01:37.2]} 31... Re8 {[%clk 0:00:45.6]} 32. h4 {[%clk
0:01:36.2]} 32... h6 {[%clk 0:00:35.4]} 33. g3 {[%clk 0:01:33.9]} 33... Nd8
{[%clk 0:00:34.2]} 34. Rxa3 {[%clk 0:01:29.9]} 34... Rxa3 {[%clk 0:00:33.3]} 35.
Nxa3 {[%clk 0:01:30.8]} 35... Nf7 {[%clk 0:00:30.9]} 36. Nc4 {[%clk 0:01:30.9]}
36... Ra8 {[%clk 0:00:31]} 37. Ra1 {[%clk 0:01:30.2]} 37... g5 {[%clk
0:00:28.1]} 38. a4 {[%clk 0:01:27.7]} 38... Kg7 {[%clk 0:00:25.2]} 39. a5 {[%clk
0:01:24.7]} 39... b5 {[%clk 0:00:25.6]} 40. Nd2 {[%clk 0:01:24.5]} 40... Nd6
{[%clk 0:00:26.2]} 41. Kd3 {[%clk 0:01:24.5]} 41... Kg6 {[%clk 0:00:26.4]} 42.
a6 {[%clk 0:01:20.6]} 42... Kh5 {[%clk 0:00:24.5]} 43. Nb3 {[%clk 0:01:14.4]}
43... Kg4 {[%clk 0:00:24.9]} 44. Nc5 {[%clk 0:01:08.4]} 44... Kxg3 {[%clk
0:00:25]} 45. hxg5 {[%clk 0:01:06.2]} 45... fxg5 {[%clk 0:00:24.3]} 46. e5
{[%clk 0:01:07.1]} 46... Nc4 {[%clk 0:00:24.7]} 47. e6 {[%clk 0:01:06.9]} 47...
g4 {[%clk 0:00:24.2]} 48. a7 {[%clk 0:01:04.7]} 48... Kh2 {[%clk 0:00:23.5]} 49.
e7 {[%clk 0:01:04.3]} 49... g3 {[%clk 0:00:23.6]} 50. Ne6 {[%clk 0:00:20.7]}
50... g2 {[%clk 0:00:23.4]} 51. Nxc7 {[%clk 0:00:20.9]} 51... Rxa7 {[%clk
0:00:12]} 52. e8=Q {[%clk 0:00:18.6]} 52... Rxa1 {[%clk 0:00:12.2]} 53. Qh5+
{[%clk 0:00:18.7]} 53... Kg3 {[%clk 0:00:08]} 54. Qg6+ {[%clk 0:00:18.9]} 54...
Kh2 {[%clk 0:00:08.3]} 55. Qxh6+ {[%clk 0:00:19.1]} 55... Kg3 {[%clk 0:00:08.8]}
56. Qg5+ {[%clk 0:00:19.8]} 56... Kh3 {[%clk 0:00:08.4]} 57. Ne6 {[%clk
0:00:15.2]} 57... Rf1 {[%clk 0:00:08.9]} 58. Ke2 {[%clk 0:00:10.3]} 58... Nd6
{[%clk 0:00:03]} 59. Qg6 {[%clk 0:00:05.8]} 59... Ne4 {[%clk 0:00:02.3]} 60.
Qh5+ {[%clk 0:00:02.6]} 60... Kg3 {[%clk 0:00:02.3]} 61. Qe5+ {[%clk 0:00:03.1]}
61... Kh3 {[%clk 0:00:02.3]} 62. Nf4+ {[%clk 0:00:03.7]} 62... Kg4 {[%clk
0:00:01.1]} 63. Nxg2 {[%clk 0:00:02.9]} 63... Ng3+ {[%clk 0:00:01.4]} 64. Qxg3+
{[%clk 0:00:02.3]} 64... Kxg3 {[%clk 0:00:01.4]} 65. Kxf1 {[%clk 0:00:03.2]}
65... Kf3 {[%clk 0:00:02.2]} 66. Ke1 {[%clk 0:00:03.5]} 66... Kxg2 {[%clk
0:00:02.4]} 67. Ke2 {[%clk 0:00:04.4]} 1-0

[Event "Late-Titled-Tuesday-Blitz-May-14-2024"]
[Site "Chess.com"]
[Date "2024.05.14"]
[Round "8"]
[White "Mikayel99"]
[Black "Individoom"]
[Result "1-0"]
[WhiteElo "2639"]
[BlackElo "2780"]
[TimeControl "180+1"]
[EndTime "15:28:30 PDT"]
[Termination "Mikayel99 won by checkmate"]

1. d4 {[%clk 0:02:58.7]} 1... Nf6 {[%clk 0:02:57.7]} 2. Nf3 {[%clk 0:02:58.8]}
2... g6 {[%clk 0:02:57.5]} 3. g3 {[%clk 0:02:59]} 3... Bg7 {[%clk 0:02:57.3]} 4.
Bg2 {[%clk 0:02:59.8]} 4... O-O {[%clk 0:02:57.8]} 5. O-O {[%clk 0:03:00.5]}
5... d6 {[%clk 0:02:58.3]} 6. Nbd2 {[%clk 0:03:00.8]} 6... Nbd7 {[%clk
0:02:53.4]} 7. b3 {[%clk 0:03:00.4]} 7... e5 {[%clk 0:02:52.4]} 8. dxe5 {[%clk
0:03:01.3]} 8... Ng4 {[%clk 0:02:47.3]} 9. Bb2 {[%clk 0:02:58.4]} 9... Ngxe5
{[%clk 0:02:46.8]} 10. Qc1 {[%clk 0:02:53.2]} 10... Re8 {[%clk 0:02:44.9]} 11.
e3 {[%clk 0:02:49.5]} 11... Qe7 {[%clk 0:02:43.2]} 12. Nxe5 {[%clk 0:02:48.8]}
12... Nxe5 {[%clk 0:02:42.1]} 13. Nf3 {[%clk 0:02:40.6]} 13... h5 {[%clk
0:02:33.7]} 14. Nxe5 {[%clk 0:02:40.1]} 14... dxe5 {[%clk 0:02:32.3]} 15. h4
{[%clk 0:02:39.1]} 15... c6 {[%clk 0:02:29]} 16. c4 {[%clk 0:02:36.3]} 16... Bg4
{[%clk 0:02:26.4]} 17. Qc3 {[%clk 0:02:20.1]} 17... Rad8 {[%clk 0:02:21.1]} 18.
f3 {[%clk 0:02:19.6]} 18... Be6 {[%clk 0:02:19.9]} 19. Rad1 {[%clk 0:02:18.4]}
19... g5 {[%clk 0:02:13]} 20. hxg5 {[%clk 0:01:52.9]} 20... Qxg5 {[%clk
0:02:12.3]} 21. f4 {[%clk 0:01:44.3]} 21... Qxg3 {[%clk 0:02:03.9]} 22. Rxd8
{[%clk 0:01:42.3]} 22... Rxd8 {[%clk 0:02:03.4]} 23. f5 {[%clk 0:01:42.5]} 23...
Bc8 {[%clk 0:01:39.3]} 24. e4 {[%clk 0:01:30.9]} 24... Qxc3 {[%clk 0:01:33.9]}
25. Bxc3 {[%clk 0:01:31.8]} 25... Rd3 {[%clk 0:01:29.6]} 26. Rf3 {[%clk
0:01:28.7]} 26... Rd1+ {[%clk 0:01:17.2]} 27. Rf1 {[%clk 0:01:20.1]} 27... Rxf1+
{[%clk 0:01:14.6]} 28. Kxf1 {[%clk 0:01:19.1]} 28... b5 {[%clk 0:01:02.7]} 29.
c5 {[%clk 0:01:12.4]} 29... Bd7 {[%clk 0:00:54.5]} 30. Bf3 {[%clk 0:01:09.1]}
30... h4 {[%clk 0:00:54.3]} 31. Kg2 {[%clk 0:01:04.4]} 31... Bf6 {[%clk
0:00:42.6]} 32. Kh3 {[%clk 0:01:01.1]} 32... Kg7 {[%clk 0:00:42.7]} 33. Kg4
{[%clk 0:00:50.2]} 33... Kh6 {[%clk 0:00:41.6]} 34. Bd2+ {[%clk 0:00:49.2]}
34... Kg7 {[%clk 0:00:41.6]} 35. Be1 {[%clk 0:00:43.7]} 35... Kh6 {[%clk
0:00:32.7]} 36. Bd2+ {[%clk 0:00:41]} 36... Kg7 {[%clk 0:00:32.5]} 37. Be1
{[%clk 0:00:40.7]} 37... Bc8 {[%clk 0:00:32.4]} 38. b4 {[%clk 0:00:33.5]} 38...
Be7 {[%clk 0:00:29.9]} 39. Bxh4 {[%clk 0:00:28.2]} 39... Bxh4 {[%clk 0:00:29.3]}
40. Kxh4 {[%clk 0:00:29.1]} 40... Bd7 {[%clk 0:00:26.5]} 41. Bh5 {[%clk
0:00:22.2]} 41... Kf6 {[%clk 0:00:22.8]} 42. Kg4 {[%clk 0:00:20.2]} 42... Bc8
{[%clk 0:00:22.4]} 43. Kh4 {[%clk 0:00:20.4]} 43... Bd7 {[%clk 0:00:22.6]} 44.
Bd1 {[%clk 0:00:20.2]} 44... Kg7 {[%clk 0:00:21.4]} 45. Be2 {[%clk 0:00:19.6]}
45... Be8 {[%clk 0:00:21.3]} 46. Bh5 {[%clk 0:00:19]} 46... Kf6 {[%clk
0:00:20.4]} 47. Kg4 {[%clk 0:00:19.6]} 47... Bd7 {[%clk 0:00:20]} 48. Kh4 {[%clk
0:00:20]} 48... Bc8 {[%clk 0:00:18.2]} 49. a3 {[%clk 0:00:20]} 49... Bd7 {[%clk
0:00:17.8]} 50. Bd1 {[%clk 0:00:20.1]} 50... Kg7 {[%clk 0:00:17.3]} 51. Bb3
{[%clk 0:00:14.2]} 51... Kf6 {[%clk 0:00:16.3]} 52. Kh5 {[%clk 0:00:14.7]} 52...
Kg7 {[%clk 0:00:14.5]} 53. Kg5 {[%clk 0:00:15]} 53... f6+ {[%clk 0:00:14.7]} 54.
Kh4 {[%clk 0:00:14.7]} 54... Kh6 {[%clk 0:00:12.5]} 55. Ba2 {[%clk 0:00:08.2]}
55... Kg7 {[%clk 0:00:12.5]} 56. Bb3 {[%clk 0:00:07.3]} 56... Kh6 {[%clk
0:00:12.5]} 57. a4 {[%clk 0:00:05.8]} 57... a6 {[%clk 0:00:11.4]} 58. a5 {[%clk
0:00:05.1]} 58... Kg7 {[%clk 0:00:10.6]} 59. Ba2 {[%clk 0:00:04.9]} 59... Kh6
{[%clk 0:00:10.8]} 60. Bg8 {[%clk 0:00:03.9]} 60... Kg7 {[%clk 0:00:10.7]} 61.
Bb3 {[%clk 0:00:04.6]} 61... Kh6 {[%clk 0:00:11]} 62. Be6 {[%clk 0:00:04.9]}
62... Bxe6 {[%clk 0:00:09]} 63. fxe6 {[%clk 0:00:05.8]} 63... Kg6 {[%clk
0:00:09.1]} 64. Kg4 {[%clk 0:00:06.2]} 64... Kg7 {[%clk 0:00:08.4]} 65. Kf5
{[%clk 0:00:06.7]} 65... Kf8 {[%clk 0:00:08.9]} 66. Kxf6 {[%clk 0:00:07.3]}
66... Ke8 {[%clk 0:00:09.8]} 67. Kxe5 {[%clk 0:00:07.9]} 67... Ke7 {[%clk
0:00:10.2]} 68. Kf5 {[%clk 0:00:08.5]} 68... Ke8 {[%clk 0:00:10.3]} 69. Kf6
{[%clk 0:00:09.2]} 69... Kf8 {[%clk 0:00:10.5]} 70. e7+ {[%clk 0:00:09.2]} 70...
Ke8 {[%clk 0:00:11.4]} 71. e5 {[%clk 0:00:09.5]} 71... Kd7 {[%clk 0:00:11.7]}
72. Kf7 {[%clk 0:00:10.2]} 72... Kc7 {[%clk 0:00:12.1]} 73. e8=Q {[%clk
0:00:10.7]} 73... Kb7 {[%clk 0:00:12.5]} 74. Qd7+ {[%clk 0:00:11.2]} 74... Kb8
{[%clk 0:00:12.6]} 75. Ke7 {[%clk 0:00:11.7]} 75... Ka8 {[%clk 0:00:12.3]} 76.
Kd6 {[%clk 0:00:12.6]} 76... Kb8 {[%clk 0:00:12.8]} 77. Kxc6 {[%clk 0:00:13.5]}
77... Ka8 {[%clk 0:00:13.3]} 78. Kb6 {[%clk 0:00:14.1]} 78... Kb8 {[%clk
0:00:12.9]} 79. Qd8# {[%clk 0:00:15]} 1-0

[Event "Late-Titled-Tuesday-Blitz-May-14-2024"]
[Site "Chess.com"]
[Date "2024.05.14"]
[Round "8"]
[White "Atanejhad"]
[Black "karinachess1"]
[Result "0-1"]
[WhiteElo "2487"]
[BlackElo "2628"]
[TimeControl "180+1"]
[EndTime "15:28:34 PDT"]
[Termination "karinachess1 won by resignation"]

1. d4 {[%clk 0:03:00.9]} 1... Nf6 {[%clk 0:03:00.1]} 2. c4 {[%clk 0:03:00.7]}
2... e6 {[%clk 0:03:00.7]} 3. Nf3 {[%clk 0:02:59.2]} 3... d5 {[%clk 0:03:01.4]}
4. Nc3 {[%clk 0:02:58.6]} 4... Bb4 {[%clk 0:03:00.5]} 5. Qc2 {[%clk 0:02:50.9]}
5... c5 {[%clk 0:02:55.2]} 6. a3 {[%clk 0:02:43]} 6... Bxc3+ {[%clk 0:02:49.4]}
7. bxc3 {[%clk 0:02:43.9]} 7... O-O {[%clk 0:02:46.9]} 8. e3 {[%clk 0:02:43.4]}
8... b6 {[%clk 0:02:40.9]} 9. Bd3 {[%clk 0:02:39.1]} 9... Ba6 {[%clk 0:02:32.3]}
10. Nd2 {[%clk 0:02:31.9]} 10... Nc6 {[%clk 0:02:15.9]} 11. O-O {[%clk
0:02:30.8]} 11... Na5 {[%clk 0:02:14.4]} 12. cxd5 {[%clk 0:02:30.7]} 12... Bxd3
{[%clk 0:02:15.3]} 13. Qxd3 {[%clk 0:02:30.8]} 13... exd5 {[%clk 0:02:15.7]} 14.
a4 {[%clk 0:02:26.3]} 14... c4 {[%clk 0:02:12.4]} 15. Qe2 {[%clk 0:02:14.9]}
15... Re8 {[%clk 0:02:13]} 16. f3 {[%clk 0:02:14.8]} 16... Qe7 {[%clk
0:02:10.6]} 17. Re1 {[%clk 0:02:13.8]} 17... Rac8 {[%clk 0:01:58.2]} 18. Ba3
{[%clk 0:02:10.4]} 18... Qe6 {[%clk 0:01:57.7]} 19. e4 {[%clk 0:02:04.2]} 19...
dxe4 {[%clk 0:01:54.8]} 20. fxe4 {[%clk 0:02:05.1]} 20... Nb3 {[%clk 0:01:51.8]}
21. Nxb3 {[%clk 0:02:04.2]} 21... cxb3 {[%clk 0:01:52.7]} 22. e5 {[%clk
0:01:37.9]} 22... Rxc3 {[%clk 0:01:52.3]} 23. a5 {[%clk 0:01:23.5]} 23... Nd5
{[%clk 0:01:44.2]} 24. axb6 {[%clk 0:01:22]} 24... axb6 {[%clk 0:01:38.5]} 25.
Bd6 {[%clk 0:01:16.8]} 25... h6 {[%clk 0:01:07.3]} 26. Qe4 {[%clk 0:01:14]}
26... Rc2 {[%clk 0:00:46.5]} 27. Qf3 {[%clk 0:01:08.7]} 27... b2 {[%clk
0:00:41]} 28. Rab1 {[%clk 0:01:06.9]} 28... Nc3 {[%clk 0:00:41.4]} 29. Qd3
{[%clk 0:01:05.1]} 29... Qg6 {[%clk 0:00:34.3]} 30. Qxg6 {[%clk 0:00:54.8]}
30... fxg6 {[%clk 0:00:35.2]} 31. Ba3 {[%clk 0:00:48.3]} 31... Nxb1 {[%clk
0:00:31.3]} 32. Rxb1 {[%clk 0:00:49.2]} 32... Rc1+ {[%clk 0:00:24.9]} 33. Rxc1
{[%clk 0:00:48.8]} 33... bxc1=Q+ {[%clk 0:00:25.8]} 34. Bxc1 {[%clk 0:00:48.9]}
34... Kf7 {[%clk 0:00:26.4]} 35. Kf2 {[%clk 0:00:46.7]} 35... Ke6 {[%clk
0:00:26.8]} 36. Ke3 {[%clk 0:00:46.8]} 36... Kd5 {[%clk 0:00:27.3]} 37. Bb2
{[%clk 0:00:42.7]} 37... b5 {[%clk 0:00:27.7]} 38. Kd3 {[%clk 0:00:41.7]} 38...
Rc8 {[%clk 0:00:27.9]} 39. Bc3 {[%clk 0:00:40.4]} 39... Rc4 {[%clk 0:00:27]} 40.
h3 {[%clk 0:00:38.2]} 40... b4 {[%clk 0:00:26.7]} 41. Bb2 {[%clk 0:00:38.2]}
41... b3 {[%clk 0:00:26.9]} 42. Bc3 {[%clk 0:00:38.5]} 42... Rc8 {[%clk
0:00:24.9]} 43. g3 {[%clk 0:00:37.1]} 43... h5 {[%clk 0:00:25.1]} 44. g4 {[%clk
0:00:36.2]} 44... hxg4 {[%clk 0:00:24.4]} 45. hxg4 {[%clk 0:00:37.1]} 45... Rh8
{[%clk 0:00:25]} 46. Bb2 {[%clk 0:00:30.7]} 46... Rh3+ {[%clk 0:00:24.3]} 47.
Kd2 {[%clk 0:00:30.7]} 47... Kc4 {[%clk 0:00:23.3]} 48. e6 {[%clk 0:00:27.1]}
48... Rh2+ {[%clk 0:00:12.9]} 49. Ke3 {[%clk 0:00:23.1]} 49... Kd5 {[%clk
0:00:07.9]} 50. e7 {[%clk 0:00:22.6]} 50... Rh8 {[%clk 0:00:08.2]} 51. Kd3
{[%clk 0:00:20.7]} 51... Re8 {[%clk 0:00:08.2]} 52. Ba3 {[%clk 0:00:20.6]} 52...
Rc8 {[%clk 0:00:08.1]} 53. Bc5 {[%clk 0:00:18.5]} 53... b2 {[%clk 0:00:05.3]}
54. Kc2 {[%clk 0:00:18.5]} 54... Rb8 {[%clk 0:00:05.8]} 55. Kb1 {[%clk
0:00:18.7]} 55... g5 {[%clk 0:00:06.3]} 56. Ba3 {[%clk 0:00:17.8]} 56... Ke6
{[%clk 0:00:06.3]} 57. Bc5 {[%clk 0:00:17.1]} 57... Kd7 {[%clk 0:00:06.1]} 58.
d5 {[%clk 0:00:16.6]} 58... g6 {[%clk 0:00:05.9]} 59. d6 {[%clk 0:00:16.6]}
59... Rc8 {[%clk 0:00:06]} 60. Ba3 {[%clk 0:00:16.4]} 60... Rc4 {[%clk
0:00:05.3]} 61. Kxb2 {[%clk 0:00:16.5]} 61... Rxg4 {[%clk 0:00:05.6]} 62. Kc3
{[%clk 0:00:17]} 62... Rf4 {[%clk 0:00:05.8]} 63. Kd3 {[%clk 0:00:17]} 63... Rf5
{[%clk 0:00:05.9]} 64. Ke4 {[%clk 0:00:17]} 64... g4 {[%clk 0:00:06.2]} 65. Bb4
{[%clk 0:00:14.8]} 65... g3 {[%clk 0:00:06.6]} 66. Bc3 {[%clk 0:00:14.2]} 66...
g2 {[%clk 0:00:06.5]} 67. Bd4 {[%clk 0:00:14.8]} 67... Rf1 {[%clk 0:00:06.2]}
68. Kd5 {[%clk 0:00:15.1]} 68... g1=Q {[%clk 0:00:06.1]} 69. e8=Q+ {[%clk
0:00:16]} 69... Kxe8 {[%clk 0:00:05.9]} 70. Bxg1 {[%clk 0:00:15.8]} 70... Rxg1
{[%clk 0:00:06.8]} 71. Ke6 {[%clk 0:00:16.3]} 71... Kd8 {[%clk 0:00:07]} 72. Kf6
{[%clk 0:00:16.5]} 72... g5 {[%clk 0:00:07.4]} 73. Kf5 {[%clk 0:00:16.6]} 73...
Kd7 {[%clk 0:00:07.7]} 74. Ke4 {[%clk 0:00:16.6]} 74... Kxd6 {[%clk 0:00:08.1]}
75. Kf3 {[%clk 0:00:17.5]} 75... Ra1 {[%clk 0:00:08]} 76. Kf2 {[%clk 0:00:18.4]}
76... Ra5 {[%clk 0:00:08.3]} 0-1

[Event "Late-Titled-Tuesday-Blitz-May-14-2024"]
[Site "Chess.com"]
[Date "2024.05.14"]
[Round "8"]
[White "duone"]
[Black "DonPreuss"]
[Result "0-1"]
[WhiteElo "2417"]
[BlackElo "2239"]
[TimeControl "180+1"]
[EndTime "15:28:34 PDT"]
[Termination "DonPreuss won by checkmate"]

1. e4 {[%clk 0:03:00.9]} 1... Nc6 {[%clk 0:02:58.1]} 2. d4 {[%clk 0:02:59.9]}
2... e5 {[%clk 0:02:58.4]} 3. Nf3 {[%clk 0:02:55.2]} 3... exd4 {[%clk
0:02:58.8]} 4. Nxd4 {[%clk 0:02:55.4]} 4... Bc5 {[%clk 0:02:59.1]} 5. Be3 {[%clk
0:02:55.4]} 5... Qf6 {[%clk 0:02:58.4]} 6. c3 {[%clk 0:02:55.6]} 6... Bb6 {[%clk
0:02:58.2]} 7. Bc4 {[%clk 0:02:53.9]} 7... Qg6 {[%clk 0:02:57]} 8. O-O {[%clk
0:02:49.7]} 8... d6 {[%clk 0:02:57.3]} 9. Nd2 {[%clk 0:02:44.6]} 9... Ne5 {[%clk
0:02:41.3]} 10. Be2 {[%clk 0:02:33.9]} 10... Bh3 {[%clk 0:02:32.9]} 11. Bf3
{[%clk 0:02:25.8]} 11... Nf6 {[%clk 0:02:05.1]} 12. Kh1 {[%clk 0:02:24]} 12...
Nxf3 {[%clk 0:02:01.1]} 13. Qxf3 {[%clk 0:02:23]} 13... Bg4 {[%clk 0:02:00.8]}
14. Qg3 {[%clk 0:02:16]} 14... h5 {[%clk 0:01:33.1]} 15. f3 {[%clk 0:02:13.1]}
15... h4 {[%clk 0:01:32.4]} 16. Qf2 {[%clk 0:02:10.2]} 16... Bd7 {[%clk
0:01:29.4]} 17. Nc4 {[%clk 0:02:09.8]} 17... O-O-O {[%clk 0:01:26.5]} 18. a4
{[%clk 0:02:06.8]} 18... Bxd4 {[%clk 0:01:19.7]} 19. cxd4 {[%clk 0:02:03.8]}
19... d5 {[%clk 0:01:15.9]} 20. Ne5 {[%clk 0:02:02.6]} 20... Qh5 {[%clk
0:01:14.2]} 21. Rfc1 {[%clk 0:01:48.7]} 21... dxe4 {[%clk 0:01:09.5]} 22. Qc2
{[%clk 0:01:48.5]} 22... c6 {[%clk 0:01:02.9]} 23. fxe4 {[%clk 0:01:48.3]} 23...
h3 {[%clk 0:00:57.7]} 24. g3 {[%clk 0:01:24.4]} 24... Rhe8 {[%clk 0:00:53.4]}
25. Bf4 {[%clk 0:01:12.7]} 25... Ng4 {[%clk 0:00:33]} 26. Qe2 {[%clk 0:00:41]}
26... f6 {[%clk 0:00:18.6]} 27. Nxg4 {[%clk 0:00:26]} 27... Bxg4 {[%clk
0:00:17.6]} 28. Rxc6+ {[%clk 0:00:16.7]} 28... bxc6 {[%clk 0:00:13.5]} 29. Qa6+
{[%clk 0:00:14.6]} 29... Kd7 {[%clk 0:00:14.1]} 30. Rc1 {[%clk 0:00:06.5]} 30...
Bf3+ {[%clk 0:00:13.4]} 31. Kg1 {[%clk 0:00:06.8]} 31... Bxe4 {[%clk 0:00:12.5]}
32. Qb7+ {[%clk 0:00:07.2]} 32... Ke6 {[%clk 0:00:12.6]} 33. Re1 {[%clk
0:00:07.1]} 33... Qf3 {[%clk 0:00:11.6]} 34. Qxc6+ {[%clk 0:00:05.2]} 34... Kf7
{[%clk 0:00:11.1]} 35. Qc4+ {[%clk 0:00:05]} 35... Kg6 {[%clk 0:00:10.2]} 36.
Qf1 {[%clk 0:00:03.7]} 36... Qh1+ {[%clk 0:00:09.1]} 37. Kf2 {[%clk 0:00:03.5]}
37... Qf3+ {[%clk 0:00:09.1]} 38. Kg1 {[%clk 0:00:03.8]} 38... Qg2+ {[%clk
0:00:07.5]} 39. Qxg2 {[%clk 0:00:03.8]} 39... Bxg2 {[%clk 0:00:08]} 40. Rc1
{[%clk 0:00:03.7]} 40... Rxd4 {[%clk 0:00:07.6]} 41. Kf2 {[%clk 0:00:04.3]}
41... Rde4 {[%clk 0:00:07.1]} 42. Rc2 {[%clk 0:00:03.9]} 42... Rxa4 {[%clk
0:00:06.5]} 43. b3 {[%clk 0:00:03.9]} 43... Rb4 {[%clk 0:00:06.5]} 44. Rb2
{[%clk 0:00:04.4]} 44... Reb8 {[%clk 0:00:05.3]} 45. Bxb8 {[%clk 0:00:03.8]}
45... Rxb8 {[%clk 0:00:04.3]} 46. Ke3 {[%clk 0:00:04.3]} 46... Re8+ {[%clk
0:00:04.1]} 47. Kd4 {[%clk 0:00:04.4]} 47... Be4 {[%clk 0:00:03.9]} 48. Re2
{[%clk 0:00:04.2]} 48... f5 {[%clk 0:00:04.4]} 49. g4 {[%clk 0:00:04.3]} 49...
Rd8+ {[%clk 0:00:04.8]} 50. Ke5 {[%clk 0:00:04.3]} 50... Re8+ {[%clk 0:00:04.1]}
51. Kf4 {[%clk 0:00:04.7]} 51... Rd8 {[%clk 0:00:05]} 52. gxf5+ {[%clk
0:00:04.8]} 52... Bxf5 {[%clk 0:00:05.5]} 53. Ra2 {[%clk 0:00:02.9]} 53... Kf6
{[%clk 0:00:05.2]} 54. Ra6+ {[%clk 0:00:02.7]} 54... Be6 {[%clk 0:00:05.5]} 55.
Rxa7 {[%clk 0:00:03.4]} 55... g6 {[%clk 0:00:06]} 56. Ra6 {[%clk 0:00:03.6]}
56... Rd4+ {[%clk 0:00:06.1]} 57. Ke3 {[%clk 0:00:03.8]} 57... Rb4 {[%clk
0:00:06.6]} 58. Ra3 {[%clk 0:00:01.5]} 58... Rxb3+ {[%clk 0:00:06.8]} 59. Rxb3
{[%clk 0:00:02.4]} 59... Bxb3 {[%clk 0:00:06.9]} 60. Kf3 {[%clk 0:00:03.3]}
60... Be6 {[%clk 0:00:07.1]} 61. Kg3 {[%clk 0:00:04.2]} 61... Kg5 {[%clk
0:00:07.2]} 62. Kf2 {[%clk 0:00:04.5]} 62... Kf4 {[%clk 0:00:07.5]} 63. Kg1
{[%clk 0:00:05.4]} 63... g5 {[%clk 0:00:08.1]} 64. Kh1 {[%clk 0:00:06.3]} 64...
g4 {[%clk 0:00:08.8]} 65. Kg1 {[%clk 0:00:07.2]} 65... g3 {[%clk 0:00:08.6]} 66.
Kh1 {[%clk 0:00:08.1]} 66... Bd5+ {[%clk 0:00:08]} 67. Kg1 {[%clk 0:00:09]}
67... Ke3 {[%clk 0:00:07.4]} 68. hxg3 {[%clk 0:00:08.8]} 68... Kf3 {[%clk
0:00:07.3]} 69. Kh2 {[%clk 0:00:09.7]} 69... Kg4 {[%clk 0:00:07.8]} 70. Kg1
{[%clk 0:00:10.1]} 70... Kxg3 {[%clk 0:00:08.2]} 71. Kf1 {[%clk 0:00:10.6]}
71... h2 {[%clk 0:00:08.8]} 72. Ke2 {[%clk 0:00:11.5]} 72... h1=Q {[%clk
0:00:08.7]} 73. Kd3 {[%clk 0:00:12.4]} 73... Qe4+ {[%clk 0:00:08.5]} 74. Kc3
{[%clk 0:00:11.3]} 74... Qc4+ {[%clk 0:00:08.6]} 75. Kd2 {[%clk 0:00:09.8]}
75... Qb3 {[%clk 0:00:08.7]} 76. Ke2 {[%clk 0:00:10]} 76... Qc3 {[%clk
0:00:08.9]} 77. Kd1 {[%clk 0:00:09.9]} 77... Qb2 {[%clk 0:00:08.6]} 78. Ke1
{[%clk 0:00:10.1]} 78... Qc2 {[%clk 0:00:08.7]} 79. Kf1 {[%clk 0:00:10.4]} 79...
Qf2# {[%clk 0:00:09.2]} 0-1